fUST/lending_fUST_20250223
["ID","MTS","AMOUNT","RATE_DAILY","PERIOD"]
[354129875,1740265841776,-500.0,0.00013945,2]
[354129876,1740265841786,-500.0,0.00013945,2]
[354129877,1740265841795,-500.0,0.00013945,2]
[354129878,1740265841805,-500.0,0.00013945,2]
[354129879,1740265841815,-473.78484,0.00013945,2]
[354129880,1740265841825,-500.0,0.00013945,2]
[354129881,1740265841834,-500.0,0.00013945,2]
[354129882,1740265841844,-997.33,0.00013945,2]
[354129883,1740265841853,-500.0,0.00013945,2]
[354129884,1740265841864,-500.0,0.00013945,2]
[354129885,1740265841874,-562.81,0.00013945,2]
[354129886,1740265841883,-500.0,0.00013945,2]
[354129887,1740265841893,-514.05,0.00013945,2]
[354129888,1740265841903,-500.0,0.00013945,2]
[354129889,1740265841915,-500.0,0.00013945,2]
[354129890,1740265841926,-500.0,0.00013945,2]
[354129891,1740265841935,-500.0,0.00013945,2]
[354129892,1740265841945,-500.0,0.00013945,2]
[354129893,1740265841955,-500.0,0.00013945,2]
[354129894,1740265841964,-500.0,0.00013945,2]
[354129895,1740265841973,-525.6,0.00013945,2]
[354129896,1740265841983,-500.0,0.00013945,2]
[354129897,1740265841994,-950.99,0.00013945,2]
[354129898,1740265842004,-500.0,0.00013945,2]
[354129899,1740265842013,-500.0,0.00013945,2]
[354129900,1740265842022,-500.0,0.00013945,2]
[354129901,1740265842032,-500.0,0.00013945,2]
[354129902,1740265842042,-437.88,0.00013945,2]
[354129903,1740265842054,-623.43,0.00013945,2]
[354129904,1740265842063,-500.0,0.00013945,2]
[354129905,1740265842072,-500.0,0.00013945,2]
[354129906,1740265842082,-543.63,0.00013945,2]
[354129907,1740265842091,-1341.9,0.00013945,2]
[354129908,1740265842100,-680.5,0.00013945,2]
[354129909,1740265842110,-3994.83,0.00013945,2]
[354129910,1740265842119,-500.0,0.00013945,2]
[354129911,1740265842129,-500.0,0.00013945,2]
[354129912,1740265842138,-500.0,0.00013945,2]
[354129913,1740265842147,-500.0,0.00013945,2]
[354129914,1740265842158,-11439.2,0.00013945,2]
[354129915,1740265842167,-500.0,0.00013945,2]
[354129916,1740265842176,-469.86,0.00013945,2]
[354129917,1740265842186,-500.0,0.00013945,2]
[354129918,1740265842195,-808.48,0.00013945,2]
[354129919,1740265842205,-573.22,0.00013945,2]
[354129920,1740265842215,-640.03,0.00013945,2]
[354129921,1740265842224,-500.0,0.00013945,2]
[354129922,1740265842233,-500.0,0.00013945,2]
[354129923,1740265842243,-1058.48,0.00013945,2]
[354129924,1740265842252,-588.8,0.00013945,2]
[354129925,1740265842262,-500.0,0.00013945,2]
[354129926,1740265842271,-3988.29,0.00013945,2]
[354129927,1740265842280,-500.0,0.00013945,2]
[354129928,1740265842290,-500.0,0.00013945,2]
[354129929,1740265842299,-715.55,0.00013945,2]
[354129930,1740265842309,-1043.88069709,0.00013952,2]
[354129931,1740265842320,-151.0,0.00014,2]
[354129932,1740265842331,-500.0,0.00014027,2]
[354129933,1740265842340,-223.76,0.00014027,2]
[354129934,1740265842350,-406.96,0.00014027,2]
[354129935,1740265842360,-500.0,0.00014027,2]
[354129936,1740265842369,-500.0,0.00014027,2]
[354129937,1740265842379,-500.0,0.00014027,2]
[354129938,1740265842388,-500.0,0.00014027,2]
[354129939,1740265842398,-500.0,0.00014027,2]
[354129940,1740265842408,-500.0,0.00014027,2]
[354129941,1740265842417,-500.0,0.00014027,2]
[354129942,1740265842426,-500.0,0.00014027,2]
[354129943,1740265842436,-500.0,0.00014027,2]
[354129944,1740265842446,-500.0,0.00014027,2]
[354129945,1740265842457,-500.0,0.00014027,2]
[354129946,1740265842467,-525.44,0.00014027,2]
[354129947,1740265842475,-500.0,0.00014027,2]
[354129948,1740265842485,-500.0,0.00014027,2]
[354129949,1740265842494,-500.0,0.00014027,2]
[354129950,1740265842503,-500.0,0.00014027,2]
[354129951,1740265842512,-185.52,0.00014027,2]
[354129952,1740265842521,-500.0,0.00014027,2]
[354129953,1740265842530,-527.71,0.00014027,2]
[354129954,1740265842539,-522.6,0.00014027,2]
[354129955,1740265842548,-1003.77,0.00014027,2]
[354129956,1740265842557,-1988.89,0.00014027,2]
[354129957,1740265842566,-500.0,0.00014027,2]
[354129958,1740265842576,-500.0,0.00014027,2]
[354129959,1740265842586,-500.0,0.00014027,2]
[354129960,1740265842595,-997.33,0.00014027,2]
[354129961,1740265842604,-407.92,0.00014027,2]
[354129962,1740265842613,-562.81,0.00014027,2]
[354129963,1740265842622,-500.0,0.00014027,2]
[354129964,1740265842631,-500.0,0.00014027,2]
[354129965,1740265842641,-500.0,0.00014027,2]
[354129966,1740265842650,-500.0,0.00014027,2]
[354129967,1740265842660,-500.0,0.00014027,2]
[354129968,1740265842669,-500.0,0.00014027,2]
[354129969,1740265842678,-950.99,0.00014027,2]
[354129970,1740265842688,-500.0,0.00014027,2]
[354129971,1740265842697,-500.0,0.00014027,2]
[354129972,1740265842706,-232.6,0.00014027,2]
[354129973,1740265842716,-500.0,0.00014027,2]
[354129974,1740265842725,-500.0,0.00014027,2]
[354129975,1740265842735,-500.0,0.00014027,2]
[354129976,1740265842744,-1341.9,0.00014027,2]
[354129977,1740265842755,-680.5,0.00014027,2]
[354129978,1740265842765,-3994.83,0.00014027,2]
[354129979,1740265842775,-500.0,0.00014027,2]
[354129980,1740265842785,-500.0,0.00014027,2]
[354129981,1740265842795,-11439.2,0.00014027,2]
[354129982,1740265842805,-808.48,0.00014027,2]
[354129983,1740265842815,-573.22,0.00014027,2]
[354129984,1740265842825,-640.03,0.00014027,2]
[354129985,1740265842836,-500.0,0.00014027,2]
[354129986,1740265842846,-1058.48,0.00014027,2]
[354129987,1740265842856,-588.8,0.00014027,2]
[354129988,1740265842868,-500.0,0.00014027,2]
[354129989,1740265842878,-3988.29,0.00014027,2]
[354129990,1740265842889,-500.0,0.00014027,2]
[354129991,1740265842899,-151.0,0.000141,2]
[354129992,1740265842908,-151.0,0.000141,2]
[354129993,1740265842925,-500.0,0.00014108,2]
[354129994,1740265842940,-181.78961524,0.00014108,2]
[354129995,1740265842950,-500.0,0.00014108,2]
[354129996,1740265842959,-526.59383851,0.00014108,2]
[354129997,1740265842970,-584.69,0.00014109,2]
[354129998,1740265842979,-602.12,0.00014109,2]
[354129999,1740265842989,-500.0,0.00014109,2]
[354130000,1740265842999,-500.0,0.00014109,2]
[354130002,1740265843009,-500.0,0.00014109,2]
[354130003,1740265843020,-497.4,0.00014109,2]
[354130004,1740265843030,-328.6,0.00014109,2]
[354130005,1740265843039,-500.0,0.00014109,2]
[354130006,1740265843049,-417.72,0.00014109,2]
[354130007,1740265843059,-500.0,0.00014109,2]
[354130008,1740265843069,-272.84,0.00014109,2]
[354130009,1740265843078,-386.76,0.00014109,2]
[354130010,1740265843087,-500.0,0.00014109,2]
[354130011,1740265843097,-500.0,0.00014109,2]
[354130012,1740265843106,-500.0,0.00014109,2]
[354130013,1740265843116,-157.92,0.00014109,2]
[354130014,1740265843125,-500.0,0.00014109,2]
[354130015,1740265843135,-527.71,0.00014109,2]
[354130016,1740265843144,-1003.77,0.00014109,2]
[354130017,1740265843154,-1988.89,0.00014109,2]
[354130018,1740265843163,-246.72,0.00014109,2]
[354130019,1740265843173,-500.0,0.00014109,2]
[354130020,1740265843183,-500.0,0.00014109,2]
[354130023,1740265843264,-997.33,0.00014109,2]
[354130024,1740265843274,-562.81,0.00014109,2]
[354130025,1740265843284,-500.0,0.00014109,2]
[354130027,1740265843294,-186.96,0.00014109,2]
[354130029,1740265843304,-500.0,0.00014109,2]
[354130031,1740265843313,-500.0,0.00014109,2]
[354130032,1740265843322,-500.0,0.00014109,2]
[354130034,1740265843332,-500.0,0.00014109,2]
[354130036,1740265843341,-950.99,0.00014109,2]
[354130038,1740265843351,-197.69,0.00014109,2]
[354130040,1740265843361,-500.0,0.00014109,2]
[354130042,1740265843371,-553.82,0.00014109,2]
[354130043,1740265843380,-500.0,0.00014109,2]
[354130044,1740265843396,-500.0,0.00014109,2]
[354130045,1740265843412,-1341.9,0.00014109,2]
[354130046,1740265843423,-680.5,0.00014109,2]
[354130047,1740265843434,-3994.83,0.00014109,2]
[354130049,1740265843444,-500.0,0.00014109,2]
[354130051,1740265843455,-500.0,0.00014109,2]
[354130053,1740265843465,-11439.2,0.00014109,2]
[354130054,1740265843476,-808.48,0.00014109,2]
[354130055,1740265843486,-573.22,0.00014109,2]
[354130056,1740265843497,-640.03,0.00014109,2]
[354130057,1740265843508,-500.0,0.00014109,2]
[354130058,1740265843518,-1058.48,0.00014109,2]
[354130059,1740265843528,-588.8,0.00014109,2]
[354130060,1740265843539,-500.0,0.00014109,2]
[354130061,1740265843550,-3988.29,0.00014109,2]
[354130063,1740265843559,-500.0,0.00014109,2]
[354130064,1740265843569,-448.8,0.00014191,2]
[354130067,1740265843579,-500.0,0.00014191,2]
[354130069,1740265843589,-500.0,0.00014191,2]
[354130071,1740265843598,-500.0,0.00014191,2]
[354130073,1740265843608,-500.0,0.00014191,2]
[354130075,1740265843619,-500.0,0.00014191,2]
[354130077,1740265843630,-500.0,0.00014191,2]
[354130079,1740265843641,-603.56,0.00014191,2]
[354130081,1740265843652,-500.0,0.00014191,2]
[354130083,1740265843662,-527.71,0.00014191,2]
[354130085,1740265843673,-1003.77,0.00014191,2]
[354130087,1740265843684,-1988.89,0.00014191,2]
[354130089,1740265843697,-500.0,0.00014191,2]
[354130091,1740265843708,-500.0,0.00014191,2]
[354130093,1740265843718,-997.33,0.00014191,2]
[354130095,1740265843728,-562.81,0.00014191,2]
[354130099,1740265843739,-500.0,0.00014191,2]
[354130101,1740265843749,-500.0,0.00014191,2]
[354130103,1740265843759,-500.0,0.00014191,2]
[354130105,1740265843769,-500.0,0.00014191,2]
[354130108,1740265843779,-500.0,0.00014191,2]
[354130111,1740265843789,-950.99,0.00014191,2]
[354130114,1740265843800,-500.0,0.00014191,2]
[354130117,1740265843810,-500.0,0.00014191,2]
[354130119,1740265843820,-500.0,0.00014191,2]
[354130121,1740265843831,-1341.9,0.00014191,2]
[354130123,1740265843841,-680.5,0.00014191,2]
[354130125,1740265843849,-3994.83,0.00014191,2]
[354130127,1740265843859,-500.0,0.00014191,2]
[354130129,1740265843870,-500.0,0.00014191,2]
[354130131,1740265843880,-11439.2,0.00014191,2]
[354130133,1740265843891,-808.48,0.00014191,2]
[354130135,1740265843901,-573.22,0.00014191,2]
[354130137,1740265843912,-640.03,0.00014191,2]
[354130139,1740265843926,-500.0,0.00014191,2]
[354130141,1740265843936,-1058.48,0.00014191,2]
[354130143,1740265843946,-588.8,0.00014191,2]
[354130146,1740265843956,-500.0,0.00014191,2]
[354130148,1740265843967,-3988.29,0.00014191,2]
[354130149,1740265843976,-547.16,0.00014191,2]
[354130151,1740265843986,-151.0,0.000142,2]
[354130153,1740265843997,-869.14127402,0.00014218,2]
[354130154,1740265844008,-1000.0,0.00014221,2]
[354130155,1740265844017,-12924.89674434,0.00014238,2]
[354130156,1740265844033,-252.90622407,0.00014255,2]
[354130157,1740265844052,-500.0,0.00014273,2]
[354130158,1740265844068,-500.0,0.00014273,2]
[354130159,1740265844081,-500.0,0.00014273,2]
[354130160,1740265844097,-215.96,0.00014273,2]
[354130161,1740265844112,-500.0,0.00014273,2]
[354130162,1740265844128,-502.52,0.00014273,2]
[354130163,1740265844144,-500.0,0.00014273,2]
[354130164,1740265844156,-527.71,0.00014273,2]
[354130166,1740265844170,-1003.77,0.00014273,2]
[354130168,1740265844186,-1988.89,0.00014273,2]
[354130171,1740265844201,-500.0,0.00014273,2]
[354130174,1740265844217,-500.0,0.00014273,2]
[354130176,1740265844232,-997.33,0.00014273,2]
[354130179,1740265844246,-562.81,0.00014273,2]
[354130181,1740265844260,-500.0,0.00014273,2]
[354130184,1740265844276,-292.48,0.00014273,2]
[354130186,1740265844291,-500.0,0.00014273,2]
[354130189,1740265844305,-500.0,0.00014273,2]
[354130192,1740265844320,-500.0,0.00014273,2]
[354130194,1740265844334,-950.99,0.00014273,2]
[354130197,1740265844350,-500.0,0.00014273,2]
[354130199,1740265844363,-500.0,0.00014273,2]
[354130201,1740265844375,-500.0,0.00014273,2]
[354130204,1740265844387,-1341.9,0.00014273,2]
[354130207,1740265844404,-680.5,0.00014273,2]
[354130209,1740265844417,-3994.83,0.00014273,2]
[354130211,1740265844428,-500.0,0.00014273,2]
[354130213,1740265844441,-500.0,0.00014273,2]
[354130216,1740265844455,-11439.2,0.00014273,2]
[354130218,1740265844466,-808.48,0.00014273,2]
[354130220,1740265844477,-573.22,0.00014273,2]
[354130223,1740265844490,-640.03,0.00014273,2]
[354130225,1740265844502,-500.0,0.00014273,2]
[354130228,1740265844516,-1058.48,0.00014273,2]
[354130230,1740265844529,-588.8,0.00014273,2]
[354130233,1740265844542,-500.0,0.00014273,2]
[354130235,1740265844554,-3988.29,0.00014273,2]
[354130237,1740265844567,-151.0,0.000143,2]
[354130240,1740265844580,-498.84,0.00014356,2]
[354130242,1740265844592,-500.0,0.00014356,2]
[354130244,1740265844605,-500.0,0.00014356,2]
[354130247,1740265844617,-500.0,0.00014356,2]
[354130249,1740265844629,-500.0,0.00014356,2]
[354130251,1740265844640,-527.71,0.00014356,2]
[354130253,1740265844652,-1003.77,0.00014356,2]
[354130256,1740265844665,-1988.89,0.00014356,2]
[354130258,1740265844678,-292.56,0.00014356,2]
[354130260,1740265844693,-500.0,0.00014356,2]
[354130263,1740265844707,-997.33,0.00014356,2]
[354130265,1740265844720,-562.81,0.00014356,2]
[354130268,1740265844733,-500.0,0.00014356,2]
[354130270,1740265844746,-500.0,0.00014356,2]
[354130272,1740265844758,-500.0,0.00014356,2]
[354130275,1740265844771,-500.0,0.00014356,2]
[354130277,1740265844783,-950.99,0.00014356,2]
[354130279,1740265844796,-500.0,0.00014356,2]
[354130282,1740265844808,-500.0,0.00014356,2]
[354130284,1740265844817,-500.0,0.00014356,2]
[354130286,1740265844827,-1341.9,0.00014356,2]
[354130288,1740265844836,-680.5,0.00014356,2]
[354130290,1740265844846,-3994.83,0.00014356,2]
[354130292,1740265844856,-500.0,0.00014356,2]
[354130294,1740265844866,-500.0,0.00014356,2]
[354130296,1740265844877,-11439.2,0.00014356,2]
[354130298,1740265844888,-808.48,0.00014356,2]
[354130300,1740265844897,-573.22,0.00014356,2]
[354130302,1740265844910,-640.03,0.00014356,2]
[354130304,1740265844924,-500.0,0.00014356,2]
[354130306,1740265844934,-1058.48,0.00014356,2]
[354130309,1740265844944,-588.8,0.00014356,2]
[354130325,1740265845084,-500.0,0.00014356,2]
[354130327,1740265845100,-3988.29,0.00014356,2]
[354130329,1740265845110,-151.0,0.000144,2]
[354130331,1740265845120,-424.7773279,0.00014414,2]
[354130333,1740265845130,-500.0,0.00014438,2]
[354130335,1740265845139,-500.0,0.00014438,2]
[354130337,1740265845148,-500.0,0.00014438,2]
[354130339,1740265845159,-500.0,0.00014438,2]
[354130341,1740265845168,-527.71,0.00014438,2]
[354130343,1740265845178,-1003.77,0.00014438,2]
[354130345,1740265845186,-1988.89,0.00014438,2]
[354130347,1740265845196,-500.0,0.00014438,2]
[354130349,1740265845205,-997.33,0.00014438,2]
[354130351,1740265845215,-562.81,0.00014438,2]
[354130354,1740265845225,-500.0,0.00014438,2]
[354130356,1740265845235,-500.0,0.00014438,2]
[354130358,1740265845244,-500.0,0.00014438,2]
[354130359,1740265845254,-500.0,0.00014438,2]
[354130362,1740265845263,-950.99,0.00014438,2]
[354130364,1740265845273,-500.0,0.00014438,2]
[354130365,1740265845283,-500.0,0.00014438,2]
[354130367,1740265845292,-500.0,0.00014438,2]
[354130370,1740265845302,-1341.9,0.00014438,2]
[354130372,1740265845313,-680.5,0.00014438,2]
[354130374,1740265845322,-3994.83,0.00014438,2]
[354130376,1740265845332,-500.0,0.00014438,2]
[354130378,1740265845342,-500.0,0.00014438,2]
[354130380,1740265845351,-11439.2,0.00014438,2]
[354130382,1740265845360,-808.48,0.00014438,2]
[354130384,1740265845370,-573.22,0.00014438,2]
[354130386,1740265845379,-640.03,0.00014438,2]
[354130388,1740265845389,-500.0,0.00014438,2]
[354130390,1740265845398,-1058.48,0.00014438,2]
[354130392,1740265845408,-588.8,0.00014438,2]
[354130394,1740265845417,-500.0,0.00014438,2]
[354130396,1740265845427,-3988.29,0.00014438,2]
[354130398,1740265845436,-900.0,0.00014438,2]
[354130400,1740265845446,-151.0,0.000145,2]
[354130402,1740265845455,-500.0,0.0001452,2]
[354130404,1740265845465,-480.72,0.0001452,2]
[354130406,1740265845474,-510.28,0.0001452,2]
[354130408,1740265845483,-500.0,0.0001452,2]
[354130410,1740265845493,-527.71,0.0001452,2]
[354130412,1740265845502,-1003.77,0.0001452,2]
[354130414,1740265845511,-1988.89,0.0001452,2]
[354130416,1740265845521,-500.0,0.0001452,2]
[354130418,1740265845530,-997.33,0.0001452,2]
[354130420,1740265845540,-562.81,0.0001452,2]
[354130422,1740265845549,-500.0,0.0001452,2]
[354130424,1740265845559,-500.0,0.0001452,2]
[354130426,1740265845568,-500.0,0.0001452,2]
[354130428,1740265845578,-500.0,0.0001452,2]
[354130430,1740265845587,-950.99,0.0001452,2]
[354130432,1740265845596,-500.0,0.0001452,2]
[354130434,1740265845605,-500.0,0.0001452,2]
[354130436,1740265845615,-500.0,0.0001452,2]
[354130438,1740265845625,-1341.9,0.0001452,2]
[354130440,1740265845635,-680.5,0.0001452,2]
[354130442,1740265845645,-3994.83,0.0001452,2]
[354130444,1740265845655,-480.32,0.0001452,2]
[354130446,1740265845664,-500.0,0.0001452,2]
[354130448,1740265845674,-11439.2,0.0001452,2]
[354130450,1740265845683,-808.48,0.0001452,2]
[354130452,1740265845693,-573.22,0.0001452,2]
[354130454,1740265845702,-640.03,0.0001452,2]
[354130456,1740265845711,-500.0,0.0001452,2]
[354130458,1740265845721,-1058.48,0.0001452,2]
[354130460,1740265845730,-588.8,0.0001452,2]
[354130462,1740265845740,-500.0,0.0001452,2]
[354130464,1740265845750,-3988.29,0.0001452,2]
[354130466,1740265845759,-151.0,0.000146,2]
[354130468,1740265845769,-518.84,0.00014602,2]
[354130470,1740265845778,-184.24,0.00014602,2]
[354130472,1740265845788,-527.71,0.00014602,2]
[354130474,1740265845799,-1003.77,0.00014602,2]
[354130476,1740265845812,-1988.89,0.00014602,2]
[354130478,1740265845825,-177.24,0.00014602,2]
[354130480,1740265845835,-997.33,0.00014602,2]
[354130482,1740265845845,-562.81,0.00014602,2]
[354130484,1740265845855,-526.52,0.00014602,2]
[354130486,1740265845865,-500.0,0.00014602,2]
[354130488,1740265845875,-500.0,0.00014602,2]
[354130490,1740265845885,-500.0,0.00014602,2]
[354130492,1740265845895,-950.99,0.00014602,2]
[354130494,1740265845905,-500.0,0.00014602,2]
[354130497,1740265845916,-500.0,0.00014602,2]
[354130498,1740265845926,-500.0,0.00014602,2]
[354130501,1740265845936,-1341.9,0.00014602,2]
[354130502,1740265845946,-680.5,0.00014602,2]
[354130505,1740265845956,-3994.83,0.00014602,2]
[354130507,1740265845967,-500.0,0.00014602,2]
[354130510,1740265845983,-11439.2,0.00014602,2]
[354130512,1740265846000,-808.48,0.00014602,2]
[354130513,1740265846011,-573.22,0.00014602,2]
[354130515,1740265846020,-640.03,0.00014602,2]
[354130519,1740265846030,-440.28,0.00014602,2]
[354130521,1740265846040,-1058.48,0.00014602,2]
[354130523,1740265846050,-588.8,0.00014602,2]
[354130525,1740265846059,-500.0,0.00014602,2]
[354130527,1740265846069,-3988.29,0.00014602,2]
[354130528,1740265846078,-1373.98822257,0.00014667,2]
[354130531,1740265846088,-167.81603494,0.00014667,2]
[354130532,1740265846097,-167.81603494,0.00014667,2]
[354130535,1740265846107,-167.81603494,0.00014667,2]
[354130537,1740265846117,-167.81603494,0.00014667,2]
[354130539,1740265846127,-167.81603494,0.00014667,2]
[354130541,1740265846136,-167.81603494,0.00014667,2]
[354130543,1740265846146,-167.81,0.00014667,2]
[354130545,1740265846156,-527.71,0.00014684,2]
[354130547,1740265846165,-1003.77,0.00014684,2]
[354130549,1740265846175,-1988.89,0.00014684,2]
[354130550,1740265846184,-997.33,0.00014684,2]
[354130553,1740265846194,-562.81,0.00014684,2]
[354130554,1740265846204,-500.0,0.00014684,2]
[354130555,1740265846214,-500.0,0.00014684,2]
[354130556,1740265846224,-500.0,0.00014684,2]
[354130557,1740265846234,-950.99,0.00014684,2]
[354130558,1740265846243,-500.0,0.00014684,2]
[354130559,1740265846254,-500.0,0.00014684,2]
[354130560,1740265846263,-500.0,0.00014684,2]
[354130561,1740265846273,-1341.9,0.00014684,2]
[354130563,1740265846282,-680.5,0.00014684,2]
[354130564,1740265846292,-3994.83,0.00014684,2]
[354130566,1740265846301,-500.0,0.00014684,2]
[354130568,1740265846310,-11439.2,0.00014684,2]
[354130570,1740265846320,-808.48,0.00014684,2]
[354130572,1740265846330,-573.22,0.00014684,2]
[354130573,1740265846339,-640.03,0.00014684,2]
[354130574,1740265846349,-1058.48,0.00014684,2]
[354130575,1740265846358,-588.8,0.00014684,2]
[354130576,1740265846367,-500.0,0.00014684,2]
[354130578,1740265846376,-3988.29,0.00014684,2]
[354130580,1740265846386,-151.0,0.000147,2]
[354130582,1740265846396,-527.71,0.00014767,2]
[354130583,1740265846406,-1003.77,0.00014767,2]
[354130584,1740265846416,-1988.89,0.00014767,2]
[354130585,1740265846426,-997.33,0.00014767,2]
[354130586,1740265846436,-562.81,0.00014767,2]
[354130587,1740265846445,-500.0,0.00014767,2]
[354130588,1740265846455,-500.0,0.00014767,2]
[354130589,1740265846464,-500.0,0.00014767,2]
[354130590,1740265846474,-950.99,0.00014767,2]
[354130591,1740265846483,-500.0,0.00014767,2]
[354130592,1740265846493,-500.0,0.00014767,2]
[354130593,1740265846502,-500.0,0.00014767,2]
[354130594,1740265846512,-1341.9,0.00014767,2]
[354130596,1740265846522,-680.5,0.00014767,2]
[354130597,1740265846531,-3994.83,0.00014767,2]
[354130598,1740265846540,-500.0,0.00014767,2]
[354130599,1740265846550,-11439.2,0.00014767,2]
[354130600,1740265846560,-808.48,0.00014767,2]
[354130601,1740265846570,-573.22,0.00014767,2]
[354130602,1740265846579,-640.03,0.00014767,2]
[354130603,1740265846589,-1058.48,0.00014767,2]
[354130604,1740265846598,-588.8,0.00014767,2]
[354130605,1740265846609,-500.0,0.00014767,2]
[354130606,1740265846619,-3988.29,0.00014767,2]
[354130607,1740265846629,-151.0,0.000148,2]
[354130608,1740265846639,-527.71,0.00014849,2]
[354130609,1740265846652,-1003.77,0.00014849,2]
[354130610,1740265846662,-1988.89,0.00014849,2]
[354130611,1740265846672,-997.33,0.00014849,2]
[354130612,1740265846683,-562.81,0.00014849,2]
[354130613,1740265846693,-500.0,0.00014849,2]
[354130614,1740265846702,-500.0,0.00014849,2]
[354130615,1740265846712,-500.0,0.00014849,2]
[354130616,1740265846722,-950.99,0.00014849,2]
[354130617,1740265846732,-500.0,0.00014849,2]
[354130618,1740265846742,-500.0,0.00014849,2]
[354130619,1740265846752,-500.0,0.00014849,2]
[354130620,1740265846762,-1341.9,0.00014849,2]
[354130621,1740265846772,-680.5,0.00014849,2]
[354130622,1740265846782,-3994.83,0.00014849,2]
[354130623,1740265846792,-500.0,0.00014849,2]
[354130624,1740265846801,-11439.2,0.00014849,2]
[354130625,1740265846811,-808.48,0.00014849,2]
[354130626,1740265846821,-573.22,0.00014849,2]
[354130627,1740265846831,-640.03,0.00014849,2]
[354130628,1740265846840,-1058.48,0.00014849,2]
[354130629,1740265846850,-588.8,0.00014849,2]
[354130630,1740265846859,-150.34,0.00014849,2]
[354130631,1740265846869,-3988.29,0.00014849,2]
[354130632,1740265846879,-151.0,0.000149,2]
[354130633,1740265846889,-500.0,0.0001493,2]
[354130634,1740265846900,-527.71,0.00014931,2]
[354130635,1740265846911,-1003.77,0.00014931,2]
[354130636,1740265846924,-1988.89,0.00014931,2]
[354130637,1740265846934,-997.33,0.00014931,2]
[354130638,1740265846944,-562.81,0.00014931,2]
[354130639,1740265846954,-500.0,0.00014931,2]
[354130640,1740265846964,-468.09,0.00014931,2]
[354130641,1740265846974,-500.0,0.00014931,2]
[354130642,1740265846984,-950.99,0.00014931,2]
[354130643,1740265846994,-478.51,0.00014931,2]
[354130644,1740265847003,-500.0,0.00014931,2]
[354130645,1740265847013,-500.0,0.00014931,2]
[354130646,1740265847023,-1341.9,0.00014931,2]
[354130647,1740265847035,-680.5,0.00014931,2]
[354130648,1740265847045,-2833.02692115,0.00014931,2]
[354130649,1740265847115,-586.9874673,0.00014931,2]
[354130650,1740265847128,-574.81561155,0.00014931,2]
[354130651,1740265847137,-425.18438845,0.00014931,2]
[354130652,1740265847148,-74.81561155,0.00014931,2]
[354130653,1740265847158,-3911.54352584,0.00014931,2]
[354130654,1740265847168,-7527.65647416,0.00014931,2]
[354130655,1740265847178,-808.48,0.00014931,2]
[354130656,1740265847188,-573.22,0.00014931,2]
[354130657,1740265847197,-640.03,0.00014931,2]
[354130658,1740265847207,-1058.48,0.00014931,2]
[354130659,1740265847216,-588.8,0.00014931,2]
[354130660,1740265847226,-3988.29,0.00014931,2]